bitfinex-derivatives/quotes_ETHF0:USTF0_20241207
["timestamp","ask_amount","ask_price","bid_price","bid_amount"]
[1733547887026,0.17502,3993.5,3993.4,5.89482932]
[1733547887330,1.07688196,3993.5,3993.4,5.89482932]
[1733547888324,0.17503,3993.3,3993.2,11.06034421]
[1733547889127,0.58013,3993.3,3993.2,3.2078]
[1733547890420,0.58013,3993.3,3993.2,9.10927131]
[1733547890724,0.90186196,3993.5,3993.3,0.17503]
[1733547890725,0.17503,3993.5,3993.3,0.17503]
[1733547890925,1.07689196,3993.5,3993.4,0.4038]
[1733547891926,0.17503,3993.4,3993.3,7.86740825]
[1733547892126,0.56093,3993.4,3993.3,7.86740825]
[1733547892522,0.56093,3993.4,3993.2,11.07869012]
[1733547892523,0.17503,3993.3,3993.2,11.07869012]
[1733547892924,0.17503,3993.3,3993.2,3.2078]
[1733547893630,0.17503,3993.3,3993.2,11.07874481]
[1733547893933,0.17503,3993.3,3993.2,11.07874921]
[1733547894233,0.17503,3993.3,3993.2,3.2078]
[1733547895135,0.17502,3993.6,3993.5,0.17502]
[1733547895336,1.07688196,3993.6,3993.5,0.17502]
[1733547895636,0.90186196,3993.6,3993.4,7.87021999]
[1733547895932,0.17502,3993.5,3993.4,8.44563999]
[1733547896132,0.17502,3993.5,3993.4,8.27061999]
[1733547896833,0.17502,3993.5,3993.4,8.44564999]
[1733547897035,0.17502,3993.5,3993.4,6.47818943]
[1733547897234,0.17502,3993.5,3993.4,0.57543]
[1733547897433,0.17502,3993.5,3993.4,6.30317604]
[1733547897647,0.17503,3993.3,3993.2,7.14371346]
[1733547897941,1.07689196,3993.3,3993.2,3.2078]
[1733547898735,0.90186196,3993.3,3992.9,3.93591346]
[1733547898933,5.10831655,3993.2,3993.0,3.93591346]
[1733547899134,0.17504,3993.0,3992.9,3.93591346]
[1733547899346,0.17504,3993.0,3992.7,9.11057604]
[1733547899347,1.07691196,3992.9,3992.8,3.93591346]
[1733547899534,0.17505,3992.8,3992.7,9.11057604]
[1733547899735,0.17505,3992.8,3992.7,3.93605658]
[1733547901533,0.17506,3992.7,3992.6,3.93605658]
[1733547902539,0.17506,3992.6,3992.5,3.93605658]
[1733547902741,2.27842196,3992.6,3992.5,3.93605658]
[1733547903039,3.18028392,3992.6,3992.5,3.93605658]
[1733547903228,0.17508,3992.1,3991.9,3.93605658]
[1733547903433,1.47495196,3992.0,3991.9,3.93276067]
[1733547903637,1.47495196,3992.0,3991.8,9.11057604]
[1733547903638,1.29986196,3992.0,3991.8,3.93276067]
[1733547903831,0.4086,3991.9,3991.7,5.90277604]
[1733547904028,0.4086,3991.9,3991.6,0.384]
[1733547904029,0.1751,3991.7,3991.6,6.28323971]
[1733547904235,0.1751,3991.7,3991.6,0.384]
[1733547904843,0.1751,3991.7,3991.6,6.28323971]
[1733547905041,0.1751,3991.7,3991.6,0.384]
[1733547905947,0.1751,3991.7,3991.6,6.27799862]
[1733547906140,0.1751,3991.7,3991.6,0.384]
[1733547907239,0.1751,3991.7,3991.6,4.31192121]
[1733547907841,0.1751,3991.7,3991.6,0.384]
[1733547908042,0.1751,3991.6,3991.5,3.92792121]
[1733547908250,0.17511,3991.5,3991.4,4.71112121]
[1733547908447,1.07697196,3991.5,3991.4,4.71112121]
[1733547908748,1.07697196,3991.5,3991.4,0.7832]
[1733547909347,1.07697196,3991.5,3991.4,4.7071697]
[1733547910248,1.07697196,3991.5,3991.4,0.7832]
[1733547910637,1.07697196,3991.5,3991.3,4.3044697]
[1733547910638,1.80372392,3991.5,3991.3,3.9239697]
[1733547910842,1.80372392,3991.5,3991.2,3.2078]
[1733547910843,0.17512,3991.3,3991.2,3.2078]
[1733547911246,1.85008196,3991.3,3991.2,3.2078]
[1733547911458,0.17515,3990.6,3990.5,7.5421697]
[1733547911746,1.07701196,3990.6,3990.5,3.6182]
[1733547911942,1.07701196,3990.6,3990.5,0.4104]
[1733547915151,0.17515,3990.5,3990.4,0.7777]
[1733547915655,1.07701196,3990.6,3990.4,0.7777]
[1733547915849,0.90186196,3990.6,3990.4,4.16065]
[1733547916246,0.90186196,3990.6,3990.5,0.17515]
[1733547916449,0.3853,3991.4,3990.8,0.17514]
[1733547916651,0.90186196,3991.1,3990.9,0.55763]
[1733547916861,1.07698196,3991.1,3991.0,3.6062]
[1733547917065,0.90186196,3991.1,3991.0,3.6062]
[1733547917266,1.07698196,3991.1,3991.0,3.6062]
[1733547917467,0.90186196,3991.1,3991.0,3.6062]
[1733547919795,0.90186196,3991.1,3991.0,3.78133]
[1733547920386,0.90186196,3991.1,3991.0,3.6062]
[1733547920688,0.90186196,3991.1,3991.0,0.3984]
[1733547921563,1.07698196,3991.1,3991.0,0.3984]
[1733547921868,1.07698196,3991.1,3990.9,0.3825]
[1733547921869,0.90186196,3991.1,3990.6,3.2078]
[1733547922166,1.07700196,3990.7,3990.6,3.2078]
[1733547923164,0.90186196,3990.7,3990.5,0.3983]
[1733547924372,0.90186196,3990.7,3990.6,3.2078]
[1733547924575,0.7782,3991.3,3990.6,3.2078]
[1733547924770,0.90186196,3990.9,3990.8,0.17514]
[1733547926070,0.1751,3991.6,3991.4,0.17511]
[1733547926288,0.1751,3991.6,3990.7,0.43786]
[1733547926289,0.1751,3991.6,3991.5,0.3955]
[1733547927370,0.1751,3991.6,3991.5,0.57061]
[1733547927666,1.07696196,3991.6,3991.5,0.3955]
[1733547927970,0.90186196,3991.7,3991.6,0.1751]
[1733547928573,0.17509,3991.9,3991.7,0.17509]
[1733547928965,1.95655432,3992.0,3991.7,0.17509]
[1733547929160,1.95655432,3992.0,3991.5,0.3955]
[1733547929472,0.1751,3991.7,3991.5,0.5706]
[1733547929766,0.1751,3991.6,3991.5,0.3955]
[1733547930166,0.1751,3991.6,3991.5,0.57061]
[1733547930375,1.95655432,3992.0,3991.5,0.57061]
[1733547930670,0.1751,3991.7,3991.5,0.57061]
[1733547931272,0.1751,3991.7,3991.6,0.1751]
[1733547931472,0.17509,3991.9,3991.7,0.1751]
[1733547931671,1.95655432,3992.0,3991.5,0.3955]
[1733547931862,0.1751,3991.7,3991.5,0.5706]
[1733547932068,0.17509,3991.9,3991.6,0.1751]
[1733547932268,0.1751,3991.8,3991.6,0.1751]
[1733547932674,1.95655432,3992.0,3991.5,0.5706]
[1733547932675,0.1751,3991.7,3991.5,0.5706]
[1733547933171,0.3826,3991.6,3991.5,0.5706]
[1733547935369,2.51425432,3991.6,3991.5,0.3955]
[1733547935575,0.17511,3991.5,3991.4,3.2078]
[1733547935784,0.56401,3991.5,3991.4,3.2078]
[1733547936279,0.17512,3991.3,3991.1,0.99502]
[1733547936481,0.17512,3991.2,3991.0,3.38293]
[1733547937071,0.7899,3991.5,3991.0,3.38293]
[1733547937072,0.3927,3991.1,3991.0,3.38293]
[1733547941070,0.3927,3991.1,3991.0,7.29316502]
[1733547942177,0.3927,3991.1,3991.0,3.38293]
[1733547942679,0.3927,3991.1,3991.0,7.30567257]
[1733547943175,0.3927,3991.1,3991.0,3.2078]
[1733547943176,0.56782,3991.1,3991.0,3.2078]
[1733547943374,0.56782,3991.1,3991.0,3.38293]
[1733547943878,0.56782,3991.1,3991.0,3.2078]
[1733547946977,0.56782,3991.1,3990.5,0.17515]
[1733547946978,0.17516,3990.3,3990.1,3.92632785]
[1733547947177,1.95655432,3990.8,3989.9,3.92632785]
[1733547947372,1.95655432,3990.2,3989.9,3.92632785]
[1733547947574,2.13171432,3990.2,3990.0,3.92632785]
[1733547947783,1.95655432,3990.2,3990.0,3.92632785]
[1733547948082,3.2078,3990.7,3990.0,3.92632785]
[1733547948281,6.83948873,3992.6,3990.0,3.92632785]
[1733547948282,3.2078,3991.1,3990.5,3.92632785]
[1733547948474,3.2078,3991.5,3990.9,3.92632785]
[1733547948786,0.90331836,3991.0,3990.9,3.92805437]
[1733547949093,0.90331836,3991.0,3990.9,3.9280883]
[1733547949313,0.90331836,3991.0,3990.7,6.04048253]
[1733547949513,0.90331836,3991.0,3990.8,0.17513]
[1733547949709,0.90331836,3991.0,3990.6,4.3803]
[1733547949710,0.90331836,3991.0,3990.9,5.86535253]
[1733547950397,0.90331836,3991.0,3990.8,0.17513]
[1733547950600,0.90331836,3991.0,3990.7,0.17514]
[1733547950899,0.90331836,3991.0,3990.9,5.8932371]
[1733547951197,0.90331836,3991.0,3990.7,7.99561004]
[1733547951398,0.90331836,3991.0,3990.7,0.17514]
[1733547951596,0.90331836,3991.0,3990.7,7.99561004]
[1733547951889,0.90331836,3991.0,3990.8,0.17513]
[1733547952089,0.90331836,3991.0,3990.7,7.99561004]
[1733547952682,0.17512,3991.2,3990.7,7.99561004]
[1733547952879,0.17512,3991.1,3991.0,5.89443807]
[1733547953079,0.17512,3991.1,3990.9,5.89443807]
[1733547953276,0.17512,3991.2,3991.0,5.89443807]
[1733547953476,0.17512,3991.2,3991.1,5.89469098]
[1733547955683,1.95728015,3991.3,3991.0,5.89469098]
[1733547955885,0.17512,3991.1,3991.0,5.89469098]
[1733547956177,0.17512,3991.1,3990.8,0.17513]
[1733547956178,0.17513,3991.0,3990.9,5.89469098]
[1733547956384,0.17512,3991.1,3990.9,5.89469098]
[1733547956577,0.17512,3991.1,3991.0,5.89469098]
[1733547957685,0.3916,3991.2,3990.9,3.9306663]
[1733547957686,0.17513,3991.0,3990.9,3.9306663]
[1733547957887,0.56563,3991.0,3990.9,3.9306663]
[1733547958085,0.56563,3991.0,3990.8,5.89469098]
[1733547958280,0.3905,3991.0,3990.8,5.89469098]
[1733547958793,0.56563,3991.0,3990.8,5.89469098]
[1733547959582,0.3905,3991.0,3990.8,5.89469098]
[1733547959990,0.17513,3990.9,3990.8,5.89469098]
[1733547960208,0.17513,3990.9,3990.8,3.93151902]
[1733547960209,1.95728015,3990.9,3990.8,3.93151902]
[1733547960485,1.95728015,3990.9,3990.4,7.82047004]
[1733547960486,1.95728015,3990.9,3990.4,3.93235869]
[1733547960688,0.17515,3990.5,3990.4,3.93235869]
[1733547960892,1.95728015,3990.5,3990.3,3.93235869]
[1733547961181,0.93856,3990.4,3990.3,3.93246324]
[1733547962098,0.17516,3990.3,3990.2,3.93246324]
[1733547962282,0.7634,3990.4,3990.1,3.93246324]
[1733547962485,0.17516,3990.2,3990.1,3.93246324]
[1733547963292,0.17517,3990.1,3990.0,4.68676324]
[1733547963791,0.7634,3990.4,3990.0,4.68676324]
[1733547963990,0.3783,3990.4,3990.2,3.93246324]
[1733547964784,0.3783,3990.4,3990.1,3.93246324]
[1733547964989,0.17516,3990.3,3990.2,3.93246324]
[1733547965181,0.17516,3990.3,3990.1,3.93246324]
[1733547966583,0.3783,3990.4,3990.1,3.93246324]
[1733547966888,0.17516,3990.2,3990.1,3.93246324]
[1733547968392,0.17516,3990.2,3990.0,4.68676324]
[1733547968596,0.17516,3990.2,3990.1,3.93246324]
[1733547968793,0.17516,3990.2,3990.0,4.68676324]
[1733547968992,0.17516,3990.2,3990.1,3.93246324]
[1733547969195,0.17516,3990.2,3990.0,4.68676324]
[1733547969587,0.3783,3990.4,3990.0,4.68676324]
[1733547970094,0.17517,3990.1,3990.0,4.68676324]
[1733547970398,0.17517,3990.1,3990.0,0.7543]
[1733547971793,0.3783,3990.4,3990.0,0.7543]
[1733547972296,0.3783,3990.4,3990.1,3.93246324]
[1733547972497,0.17516,3990.2,3990.1,3.93246324]
[1733547972894,0.17516,3990.2,3990.1,5.89086535]
[1733547973293,0.17516,3990.2,3990.1,5.8908302]
[1733547974391,0.3783,3990.4,3990.1,0.17517]
[1733547974597,0.17516,3990.3,3990.2,5.89121432]
[1733547977899,0.17514,3990.7,3990.6,0.17515]
[1733547978106,0.17514,3990.9,3990.7,0.17514]
[1733547978300,0.17514,3990.9,3990.8,3.92807866]
[1733547978704,0.17514,3990.8,3990.7,0.57864]
[1733547978905,0.17514,3990.8,3990.7,6.47083808]
[1733547979106,0.17514,3990.9,3990.7,6.47083808]
[1733547979298,3.606,3991.6,3990.7,6.29569808]
[1733547979499,1.07879013,3991.5,3991.4,0.17511]
[1733547979704,0.90368013,3991.5,3991.4,0.17511]
[1733547979910,0.90368013,3991.5,3991.3,7.07349808]
[1733547980103,0.17511,3991.4,3991.3,7.24860808]
[1733547980304,0.90368013,3991.5,3991.4,0.17511]
[1733547980908,0.17511,3991.4,3991.3,7.24860808]
[1733547981506,0.17511,3991.4,3991.3,7.07349808]
[1733547982113,0.17512,3991.3,3991.2,9.09999808]
[1733547982309,0.56852,3991.3,3991.2,9.09999808]
[1733547982510,2.5257359,3991.3,3991.2,3.2078]
[1733547983114,0.56851,3991.3,3991.2,9.09999808]
[1733547983414,0.56851,3991.3,3991.2,3.2078]
[1733547984511,0.56851,3991.3,3991.2,9.10072332]
[1733547987516,0.56851,3991.3,3991.2,3.38291]
[1733547988421,0.56851,3991.3,3991.2,0.3972]
[1733547989518,2.3506159,3991.3,3990.9,3.92885563]
[1733547989717,2.3506159,3991.3,3990.8,3.2078]
[1733547989718,0.17513,3990.9,3990.8,3.2078]
[1733547990012,0.17515,3990.4,3990.3,3.92885563]
[1733547990408,0.7562,3990.8,3990.2,7.13665563]
[1733547990409,0.17515,3990.3,3990.2,7.13665563]
[1733547990810,0.17515,3990.3,3990.2,3.2078]
[1733547992018,0.3961,3990.4,3989.9,0.408]
[1733547992019,0.3961,3990.4,3989.9,0.17517]
[1733547992210,0.17517,3990.0,3989.8,0.17517]
[1733547992611,0.4079,3990.2,3989.7,3.2078]
[1733547992820,0.4079,3990.2,3989.9,0.17517]
[1733547992821,0.17517,3990.0,3989.9,0.17517]
[1733547993217,0.17517,3990.0,3989.8,0.17518]
[1733547994226,0.17517,3990.0,3989.8,4.10527296]
[1733547994716,0.17517,3990.0,3989.8,8.03536592]
[1733547994920,0.4079,3990.2,3989.8,7.86018592]
[1733547995110,0.58306,3990.2,3990.1,5.89501444]
[1733547996124,1.9572159,3990.5,3990.0,5.89501444]
[1733547996341,0.17516,3990.2,3990.1,7.07621444]
[1733547997623,0.17516,3990.2,3990.1,5.89501444]
[1733547997812,0.17516,3990.1,3990.0,5.89501444]
[1733547998515,0.17517,3990.0,3989.9,5.89501444]
[1733547998721,0.56547,3990.0,3989.9,5.89501444]
[1733547999026,0.17517,3990.0,3989.8,0.95457]
[1733547999323,0.17516,3990.1,3989.9,0.17517]
[1733548000221,0.17515,3990.3,3989.9,0.17517]
[1733548000421,0.17515,3990.3,3990.2,3.92952741]
[1733548002626,1.07884529,3990.3,3990.2,3.92952741]
[1733548002818,0.90369529,3990.3,3990.0,3.92952741]
[1733548003024,0.17517,3990.1,3990.0,3.92952741]
[1733548006426,0.17517,3990.0,3989.9,3.92952741]
[1733548006821,0.3959,3990.2,3989.8,6.29839112]
[1733548007030,0.17517,3990.0,3989.9,3.92978381]
[1733548008625,0.17517,3989.9,3989.8,6.29839112]
[1733548009733,0.17517,3989.9,3989.8,5.89429112]
[1733548010026,0.17518,3989.8,3989.7,11.46888592]
[1733548010233,0.17518,3989.8,3989.7,11.64406592]
[1733548011521,0.17518,3989.8,3989.7,8.43626592]
[1733548011734,0.17518,3989.8,3989.7,11.64406592]
[1733548012127,0.90369529,3990.0,3989.9,0.17517]
[1733548012128,0.17517,3990.0,3989.9,0.17517]
[1733548012439,0.17517,3990.1,3990.0,0.17517]
[1733548012627,0.17517,3990.1,3990.0,6.06931745]
[1733548013432,0.17517,3990.1,3990.0,5.89414745]
[1733548014631,0.17517,3990.1,3990.0,6.06931745]
[1733548014834,0.17517,3990.1,3990.0,5.89414745]
[1733548015031,0.17517,3990.1,3990.0,6.06931745]
[1733548015432,0.17517,3990.1,3990.0,5.89414745]
[1733548016938,0.17517,3990.0,3989.9,4.10451193]
[1733548017227,0.17517,3990.0,3989.9,3.92933193]
[1733548017827,0.90369529,3990.2,3989.8,4.10451193]
[1733548018032,0.17518,3989.9,3989.8,3.92933193]
[1733548018233,1.07887529,3989.9,3989.8,3.92933193]
[1733548018740,0.17518,3989.8,3989.7,3.92933193]
[1733548019242,0.57818,3989.8,3989.7,3.92933193]
[1733548019939,0.17519,3989.7,3989.6,6.44503745]
[1733548020139,0.57819,3989.8,3989.6,6.44503745]
[1733548020336,0.57819,3989.8,3989.7,3.92910834]
[1733548023639,0.403,3989.8,3989.6,4.30480834]
[1733548023946,0.17519,3989.7,3989.6,4.30480834]
[1733548024139,0.17519,3989.7,3989.6,0.3757]
[1733548024844,0.17519,3989.7,3989.5,6.47363745]
[1733548024845,0.17519,3989.7,3989.5,8.26448592]
[1733548025042,0.90369529,3989.6,3989.5,7.86018592]
[1733548025342,1.07888529,3989.6,3989.5,3.92879425]
[1733548025946,0.8075,3989.8,3989.5,4.10398425]
[1733548026147,0.17519,3989.7,3989.6,4.34399425]
[1733548026849,0.17519,3989.7,3989.6,0.4152]
[1733548027243,0.17519,3989.7,3989.6,3.92862181]
[1733548028343,1.07888529,3989.7,3989.6,3.92862181]
[1733548028545,0.17519,3989.6,3989.5,3.92862181]
[1733548030944,0.1752,3989.5,3989.4,5.8933454]
[1733548031146,0.1752,3989.4,3989.3,3.93043229]
[1733548031455,1.07889529,3989.4,3989.3,3.93043229]
[1733548032248,1.07889529,3989.4,3989.3,3.93098107]
[1733548032451,0.90369529,3989.4,3989.2,5.8933454]
[1733548032648,1.07889529,3989.4,3989.3,3.93098372]
[1733548032848,0.1752,3989.3,3989.2,3.93098372]
[1733548033348,0.90369529,3989.4,3989.2,3.93161951]
[1733548033547,0.1752,3989.3,3989.2,3.93161951]
[1733548034454,0.17521,3989.2,3989.1,5.8933454]
[1733548035254,0.17521,3989.2,3989.0,0.17521]
[1733548035454,1.07890529,3989.1,3989.0,0.17521]
[1733548035645,0.90369529,3989.1,3989.0,0.17521]
[1733548035845,1.07890529,3989.1,3989.0,0.17521]
[1733548036253,0.90369529,3989.1,3989.0,0.17521]
[1733548036549,0.17521,3989.2,3989.1,0.17521]
[1733548036745,1.07890529,3989.2,3989.1,0.17521]
[1733548036953,0.17521,3989.1,3989.0,0.17521]
[1733548037341,0.90369529,3989.2,3988.9,7.86018592]
[1733548037547,1.07890529,3989.2,3989.1,6.07463567]
[1733548038152,1.07890529,3989.2,3989.1,5.89942567]
[1733548038979,0.90369529,3989.2,3989.1,6.07463567]
[1733548039676,0.90369529,3989.2,3989.1,5.89942567]
[1733548039976,0.90369529,3989.2,3988.9,7.86018592]
[1733548039977,0.90369529,3989.2,3989.0,3.9322594]
[1733548040170,0.17521,3989.1,3989.0,4.1074694]
[1733548040961,0.17521,3989.1,3989.0,3.9322594]
[1733548041951,0.17521,3989.1,3989.0,4.1074794]
[1733548043655,0.17521,3989.1,3989.0,3.9322594]
[1733548044357,0.17521,3989.1,3989.0,4.1074794]
[1733548045357,0.17521,3989.1,3989.0,3.9322594]
[1733548046160,0.17521,3989.1,3989.0,4.1074794]
[1733548047057,0.17521,3989.1,3989.0,6.07464567]
[1733548053356,0.17521,3989.3,3989.2,0.1752]
[1733548053560,1.07890529,3989.3,3989.2,3.93136639]
[1733548053961,1.07890529,3989.3,3989.2,4.33976639]
[1733548054162,1.07890529,3989.3,3989.2,0.4084]
[1733548054855,0.90369529,3989.3,3988.8,0.3913]
[1733548055061,1.07891529,3989.0,3988.9,0.17522]
[1733548055866,1.07891529,3989.0,3988.9,6.07259559]
[1733548057859,0.17522,3988.9,3988.8,5.89737559]
[1733548058166,0.17523,3988.8,3988.7,7.1399755]
[1733548058464,0.56033,3988.8,3988.7,3.2078]
[1733548060664,0.56033,3988.8,3988.5,3.9321755]
[1733548060665,0.3851,3988.8,3988.5,3.9321755]
[1733548060866,0.3851,3988.8,3988.3,5.89737559]
[1733548060867,0.17523,3988.5,3988.4,3.9321755]
[1733548061563,0.4024,3988.9,3988.4,3.9321755]
[1733548061860,0.4024,3988.9,3988.6,3.93254646]
[1733548062168,0.90369529,3988.7,3988.6,0.17523]
[1733548063467,0.17523,3988.6,3988.4,9.83284464]
[1733548063668,0.17524,3988.4,3988.3,9.83284464]
[1733548063862,0.17525,3988.2,3988.0,9.83284464]
[1733548064061,0.17525,3988.2,3988.1,7.86803129]
[1733548064366,0.17525,3988.1,3987.9,0.17526]
[1733548064567,1.07895529,3988.0,3987.9,9.83284464]
[1733548064761,1.45295529,3988.0,3987.8,13.21590464]
[1733548065164,1.27769529,3988.0,3987.8,13.04064464]
[1733548065364,0.17526,3987.9,3987.8,3.2078]
[1733548065564,1.45295529,3988.0,3987.8,3.38306]
[1733548065763,0.17526,3987.9,3987.8,3.2078]
[1733548066566,0.17526,3987.9,3987.8,11.0737536]
[1733548066867,0.17526,3987.9,3987.8,3.2078]
[1733548067068,0.17526,3987.9,3987.8,11.07365777]
[1733548068575,1.45295529,3988.0,3987.8,11.24891777]
[1733548069269,1.27769529,3988.0,3987.8,8.04111777]
[1733548069469,0.17526,3987.9,3987.8,8.04111777]
[1733548069669,0.17526,3987.9,3987.8,7.86585777]
[1733548070873,1.27769529,3988.0,3987.9,0.17526]
[1733548071069,1.27769529,3988.0,3987.9,8.04111777]
[1733548071269,1.27769529,3988.0,3987.7,3.2078]
[1733548071270,1.27769529,3988.0,3987.8,7.86585777]
[1733548071475,1.45295529,3988.0,3987.8,8.04111777]
[1733548072069,1.27769529,3988.0,3987.8,8.04111777]
[1733548072270,0.17526,3987.9,3987.8,8.04111777]
[1733548072974,0.17526,3987.9,3987.7,3.2078]
[1733548072975,0.17527,3987.8,3987.7,5.89855967]
[1733548073268,0.7999,3987.8,3987.6,5.89855967]
[1733548073474,1.07896529,3987.7,3987.6,5.89855967]
[1733548074276,0.17527,3987.6,3987.5,5.89855967]
[1733548074483,1.07896529,3987.6,3987.5,5.89855967]
[1733548074774,1.98266058,3987.6,3987.5,5.89855967]
[1733548075169,0.17528,3987.5,3987.2,7.86585777]
[1733548075370,0.56458,3987.5,3987.4,5.89425144]
[1733548077478,0.17528,3987.4,3987.3,5.89425144]
[1733548078674,0.3893,3987.5,3987.1,7.13717256]
[1733548078874,1.07898529,3987.2,3987.1,7.13717256]
[1733548079080,1.07898529,3987.2,3987.1,7.13707385]
[1733548079581,1.07898529,3987.2,3987.1,3.92927385]
[1733548080372,0.3893,3987.5,3987.4,0.17528]
[1733548080679,0.90369529,3987.9,3987.5,0.4382]
[1733548080875,0.90369529,3987.9,3987.8,3.38306]
[1733548081781,0.3953,3988.6,3987.8,3.2078]
[1733548082080,0.17524,3988.4,3988.2,7.3083926]
[1733548082280,0.17524,3988.4,3988.3,3.9253426]
[1733548082480,0.3953,3988.6,3988.3,3.9253426]
[1733548082682,0.3781,3988.7,3988.3,3.9253426]
[1733548082984,0.17522,3988.9,3988.6,4.1005726]
[1733548083281,0.17522,3988.9,3988.7,4.3350426]
[1733548083483,0.17522,3988.8,3988.7,4.3350426]
[1733548083779,0.17522,3988.9,3988.7,4.5102726]
[1733548084181,0.17522,3988.8,3988.7,4.3350426]
[1733548084382,1.07891529,3988.8,3988.7,0.4097]
[1733548084582,1.95968999,3988.8,3988.7,4.3350426]
[1733548084780,2.13490999,3988.8,3988.7,0.4097]
[1733548085080,0.17523,3988.5,3988.4,0.01120471]
[1733548085480,0.4126,3988.7,3988.4,0.01120471]
[1733548085680,2.13490999,3988.8,3988.5,3.2078]
[1733548085881,2.13490999,3988.8,3988.7,0.17523]
[1733548086084,1.95968999,3988.8,3988.7,0.17523]
[1733548087584,0.17523,3988.7,3988.5,0.17523]
[1733548087784,0.17523,3988.7,3988.4,0.01120471]
[1733548087785,0.17523,3988.6,3988.4,0.18644471]
[1733548088481,0.17523,3988.5,3988.4,0.01120471]
[1733548088681,0.17523,3988.6,3988.4,0.18644471]
[1733548088883,0.17523,3988.6,3988.4,0.01120471]
[1733548089084,0.17523,3988.6,3988.4,0.18644471]
[1733548089289,1.95968999,3988.8,3988.4,0.18644471]
[1733548089587,0.17523,3988.7,3988.4,0.01120471]
[1733548089781,0.17523,3988.7,3988.5,0.17523]
[1733548089988,1.95968999,3988.8,3988.4,3.21900471]
[1733548090282,1.95968999,3988.8,3988.7,0.17523]
[1733548090883,1.95968999,3988.8,3988.4,3.21900471]
[1733548091083,1.95968999,3988.8,3988.7,0.17523]
[1733548092691,1.95968999,3988.8,3988.7,0.57863]
[1733548092884,1.95968999,3988.8,3988.7,0.95683]
[1733548093283,2.37228999,3989.2,3989.1,0.17521]
[1733548093884,1.95968999,3989.2,3989.1,0.17521]
[1733548094597,1.95968999,3989.2,3989.0,3.38301]
[1733548094782,1.95968999,3989.2,3989.0,7.3083526]
[1733548094984,0.17521,3989.1,3989.0,3.2078]
[1733548095289,1.95968999,3989.2,3989.0,3.38301]
[1733548095480,1.95968999,3989.2,3989.0,3.2078]
[1733548095686,0.17521,3989.1,3989.0,3.2078]
[1733548099991,1.95968999,3989.2,3989.0,3.2078]
[1733548100289,1.95968999,3989.2,3989.1,0.17521]
[1733548104495,0.90419139,3989.2,3989.0,7.1331426]
[1733548104695,0.90419139,3989.2,3989.1,0.17521]
[1733548110392,0.90419139,3989.2,3989.0,3.2078]
[1733548110393,0.17521,3989.1,3989.0,3.2078]
[1733548110696,1.36511,3989.1,3989.0,3.2078]
[1733548112098,0.17521,3989.0,3988.7,0.4034]
[1733548112401,1.1899,3989.1,3988.8,0.17522]
[1733548112402,0.90419139,3988.9,3988.8,0.17522]
[1733548115199,0.90419139,3988.9,3988.8,4.1005626]
[1733548115494,0.90419139,3988.9,3988.8,0.17522]
[1733548115895,0.8059,3989.1,3989.0,0.17521]
[1733548116197,0.3971,3989.1,3989.0,0.17521]
[1733548120403,0.3971,3989.1,3989.0,0.56501]
[1733548121405,0.3971,3989.1,3989.0,4.48597543]
[1733548122705,0.3971,3989.1,3989.0,0.56501]
[1733548122902,0.3971,3989.1,3989.0,4.48597543]
[1733548123303,0.3971,3989.1,3989.0,0.56501]
[1733548123603,0.3971,3989.1,3989.0,4.49107184]
[1733548124305,0.3971,3989.1,3989.0,0.56501]
[1733548124605,0.3971,3989.1,3989.0,6.44645815]
[1733548125199,0.90419139,3989.2,3989.0,6.27124815]
[1733548125400,0.90419139,3989.2,3989.1,0.17521]
[1733548127506,0.90419139,3989.2,3989.1,8.01714087]
[1733548127803,0.90419139,3989.2,3989.1,0.17521]
[1733548128195,0.90419139,3989.2,3989.1,8.01714087]
[1733548129504,0.90419139,3989.2,3989.1,0.17521]
[1733548131915,0.90419139,3989.2,3989.1,6.07176602]
[1733548132212,0.90419139,3989.2,3989.1,0.17521]
[1733548133610,0.90419139,3989.2,3989.1,6.07176602]
[1733548134705,0.90419139,3989.2,3989.1,0.17521]
[1733548135014,0.90419139,3989.2,3989.1,6.07176602]
[1733548135312,0.90419139,3989.2,3989.1,0.17521]
[1733548135508,0.90419139,3989.2,3989.1,6.07176602]
[1733548135905,0.90419139,3989.2,3989.1,0.17521]
[1733548136107,0.90419139,3989.2,3989.1,6.07176602]
[1733548137317,0.90419139,3989.2,3989.0,3.5976]
[1733548137318,2.94582654,3989.5,3989.3,0.1752]
[1733548137508,3.92776872,3989.8,3989.3,0.1752]
[1733548137509,2.94582654,3989.9,3989.4,12.79851781]
[1733548137814,4.32476872,3990.1,3989.4,12.79851781]
[1733548137815,0.397,3990.1,3990.0,0.17517]
[1733548138406,0.397,3990.1,3989.8,11.07302444]
[1733548138610,1.07936139,3990.0,3989.8,11.24820444]
[1733548138811,1.07936139,3990.0,3989.8,3.38298]
[1733548139113,0.90419139,3990.0,3989.8,3.2078]
[1733548139315,0.90419139,3990.0,3989.9,5.89691311]
[1733548139316,1.07936139,3990.0,3989.9,5.89691311]
[1733548140129,0.90419139,3990.0,3989.8,9.10471311]
[1733548140312,0.17517,3989.9,3989.8,9.10471311]
[1733548140511,1.07936139,3990.0,3989.8,9.27989311]
[1733548141011,1.07936139,3990.0,3989.9,0.17517]
[1733548142017,0.90419139,3990.0,3989.9,0.17517]
[1733548142218,0.90419139,3990.0,3989.8,9.10471311]
[1733548142420,0.90419139,3990.0,3989.9,3.93077692]
[1733548143415,0.90419139,3990.0,3989.9,3.93125212]
[1733548143616,0.90419139,3990.0,3989.8,7.13905212]
[1733548143822,0.90419139,3990.0,3989.9,3.93125212]
[1733548144715,0.90419139,3990.0,3989.8,3.2078]
[1733548144911,2.95231348,3989.9,3989.8,0.17518]
[1733548145113,3.85650487,3990.0,3989.7,3.93125212]
[1733548145311,3.85650487,3990.0,3989.9,0.17517]
[1733548145514,0.90419139,3990.0,3989.9,0.17517]
[1733548145920,3.85637491,3990.0,3989.9,0.17517]
[1733548146115,0.90419139,3990.0,3989.9,0.17517]
[1733548146422,3.85639977,3990.0,3989.9,0.17517]
[1733548146822,2.95196399,3990.0,3989.9,0.17517]
[1733548147130,0.397,3990.1,3989.9,3.2078]
[1733548147319,0.397,3990.1,3990.0,0.55917]
[1733548147626,2.95196399,3990.4,3990.0,4.71819207]
[1733548147822,3.34796399,3990.4,3990.3,0.17516]